[Event "Titled Tuesday Blitz February 28 Early 2023"]
[White "Florescu, Codrut-Constantin"]
[Black "Real_OceanStorm"]
[WhiteFideId "1202200"]
[WhiteElo "2191"]
[BlackElo "2766"]
[Result "1-0"]
[Round "02"]
[TimeControl "180+2"]
[Date "2023.02.28"]
[WhiteClock "0:00:50"]
[BlackClock "0:00:12"]

1. e4 {[%clk 0:03:00]}  c5 {[%clk 0:02:57]} 2. Nf3 {[%clk 0:03:00]}  Nc6 {[%clk 0:02:58]} 3. d4 {[%clk 0:03:00]}  cxd4 {[%clk 0:02:59]} 4. Nxd4 {[%clk 0:03:01]}  e5 {[%clk 0:02:59]} 5. Nb5 {[%clk 0:03:00]}  a6 {[%clk 0:02:59]} 6. Nd6+ {[%clk 0:02:59]}  Bxd6 {[%clk 0:02:59]} 7. Qxd6 {[%clk 0:02:59]}  Qe7 {[%clk 0:03:00]} 8. Qxe7+ {[%clk 0:02:57]}  Ngxe7 {[%clk 0:03:00]} 9. c3 {[%clk 0:02:55]}  d6 {[%clk 0:03:00]} 10. Bd3 {[%clk 0:02:46]}  f5 {[%clk 0:03:00]} 11. O-O {[%clk 0:02:46]}  fxe4 {[%clk 0:02:59]} 12. Bxe4 {[%clk 0:02:46]}  d5 {[%clk 0:02:59]} 13. Bc2 {[%clk 0:02:45]}  O-O {[%clk 0:02:59]} 14. Be3 {[%clk 0:02:43]}  h6 {[%clk 0:02:48]} 15. Bb3 {[%clk 0:02:42]}  Be6 {[%clk 0:02:45]} 16. Bc5 {[%clk 0:02:39]}  Rfc8 {[%clk 0:02:25]} 17. Re1 {[%clk 0:02:37]}  Kf7 {[%clk 0:02:25]} 18. Nd2 {[%clk 0:02:35]}  Ng6 {[%clk 0:02:21]} 19. Nf3 {[%clk 0:02:34]}  e4 {[%clk 0:02:04]} 20. Nd4 {[%clk 0:02:28]}  Nxd4 {[%clk 0:02:04]} 21. Bxd4 {[%clk 0:02:28]}  Nf4 {[%clk 0:02:00]} 22. Re3 {[%clk 0:02:21]}  g5 {[%clk 0:01:52]} 23. f3 {[%clk 0:02:18]}  Nd3 {[%clk 0:01:22]} 24. fxe4 {[%clk 0:02:11]}  dxe4 {[%clk 0:01:22]} 25. Rf1+ {[%clk 0:02:09]}  Ke7 {[%clk 0:01:22]} 26. Rxe4 {[%clk 0:02:09]}  Rc6 {[%clk 0:01:22]} 27. Rf3 {[%clk 0:01:55]}  Nc1 {[%clk 0:01:16]} 28. Bd5 {[%clk 0:01:45]}  Kd7 {[%clk 0:00:32]} 29. Bxc6+ {[%clk 0:01:28]}  bxc6 {[%clk 0:00:32]} 30. Re1 {[%clk 0:01:20]}  Nxa2 {[%clk 0:00:32]} 31. Rf6 {[%clk 0:01:17]}  Re8 {[%clk 0:00:32]} 32. Rfxe6 {[%clk 0:01:14]}  Rxe6 {[%clk 0:00:32]} 33. Ra1 {[%clk 0:01:14]}  Nxc3 {[%clk 0:00:31]} 34. bxc3 {[%clk 0:01:14]}  Re2 {[%clk 0:00:31]} 35. Rxa6 {[%clk 0:01:12]}  Kd6 {[%clk 0:00:32]} 36. Ra5 {[%clk 0:01:12]}  Rc2 {[%clk 0:00:32]} 37. h3 {[%clk 0:01:11]}  Ke6 {[%clk 0:00:32]} 38. Kf1 {[%clk 0:01:09]}  Kd6 {[%clk 0:00:32]} 39. Rf5 {[%clk 0:01:07]}  Ke7 {[%clk 0:00:32]} 40. Re5+ {[%clk 0:01:06]}  Kd6 {[%clk 0:00:32]} 41. Re2 {[%clk 0:01:06]}  Rc1+ {[%clk 0:00:32]} 42. Kf2 {[%clk 0:01:06]}  h5 {[%clk 0:00:32]} 43. Kg3 {[%clk 0:01:06]}  c5 {[%clk 0:00:32]} 44. Bf6 {[%clk 0:01:05]}  g4 {[%clk 0:00:27]} 45. h4 {[%clk 0:01:05]}  Rf1 {[%clk 0:00:27]} 46. Bg5 {[%clk 0:00:56]}  Rd1 {[%clk 0:00:26]} 47. Rd2+ {[%clk 0:00:55]}  Rxd2 {[%clk 0:00:01]} 48. Bxd2 {[%clk 0:00:54]}  Kd5 {[%clk 0:00:02]} 49. Kf4 {[%clk 0:00:54]}  Kc4 {[%clk 0:00:03]} 50. Kg5 {[%clk 0:00:52]}  Kd3 {[%clk 0:00:04]} 51. Bf4 {[%clk 0:00:52]}  Kxc3 {[%clk 0:00:04]} 52. Kxh5 {[%clk 0:00:53]}  c4 {[%clk 0:00:05]} 53. Kxg4 {[%clk 0:00:53]}  Kd3 {[%clk 0:00:06]} 54. Be5 {[%clk 0:00:53]}  Ke4 {[%clk 0:00:07]} 55. Bg7 {[%clk 0:00:52]}  Kd5 {[%clk 0:00:08]} 56. h5 {[%clk 0:00:52]}  Ke6 {[%clk 0:00:09]} 57. Kg5 {[%clk 0:00:53]}  Kf7 {[%clk 0:00:10]} 58. h6 {[%clk 0:00:53]}  Kg8 {[%clk 0:00:11]} 59. Be5 {[%clk 0:00:51]}  Kh7 {[%clk 0:00:12]} 60. g4 {[%clk 0:00:50]}  c3 {[%clk 0:00:12]} 61. Bxc3 {[%clk 0:00:50]}  Kg8 {[%clk 0:00:12]} 62. Kg6 {[%clk 0:00:50]} 1-0


[Site "https://www.chess.com"]

[Event "Titled Tuesday Blitz February 28 Early 2023"]
[White "Samunenkov, Ihor"]
[Black "Mammadzada, Gunay"]
[WhiteFideId "14187086"]
[BlackFideId "13403729"]
[WhiteElo "2457"]
[BlackElo "2396"]
[Result "0-1"]
[Round "02"]
[TimeControl "180+2"]
[Date "2023.02.28"]
[WhiteClock "0:00:04"]
[BlackClock "0:00:04"]

1. d4 {[%clk 0:03:00]}  d5 {[%clk 0:02:27]} 2. c4 {[%clk 0:02:59]}  c6 {[%clk 0:02:28]} 3. Nf3 {[%clk 0:02:58]}  Nf6 {[%clk 0:02:28]} 4. e3 {[%clk 0:02:58]}  Bf5 {[%clk 0:02:26]} 5. Nc3 {[%clk 0:02:57]}  e6 {[%clk 0:02:24]} 6. Nh4 {[%clk 0:02:58]}  Be4 {[%clk 0:02:22]} 7. f3 {[%clk 0:02:57]}  Bg6 {[%clk 0:02:23]} 8. Bd2 {[%clk 0:02:52]}  Be7 {[%clk 0:02:22]} 9. Qb3 {[%clk 0:02:41]}  Qc7 {[%clk 0:02:19]} 10. Nxg6 {[%clk 0:02:39]}  hxg6 {[%clk 0:02:19]} 11. O-O-O {[%clk 0:02:35]}  dxc4 {[%clk 0:02:10]} 12. Bxc4 {[%clk 0:02:33]}  b5 {[%clk 0:02:09]} 13. Bd3 {[%clk 0:02:11]}  a6 {[%clk 0:02:08]} 14. e4 {[%clk 0:01:18]}  c5 {[%clk 0:02:04]} 15. dxc5 {[%clk 0:01:16]}  Nbd7 {[%clk 0:02:02]} 16. Kb1 {[%clk 0:01:03]}  Nxc5 {[%clk 0:02:01]} 17. Qc2 {[%clk 0:01:04]}  Qb7 {[%clk 0:01:17]} 18. Be3 {[%clk 0:01:00]}  Rc8 {[%clk 0:01:15]} 19. Qf2 {[%clk 0:00:31]}  b4 {[%clk 0:01:10]} 20. Ne2 {[%clk 0:00:31]}  Nfd7 {[%clk 0:00:48]} 21. Bd4 {[%clk 0:00:20]}  e5 {[%clk 0:00:40]} 22. Be3 {[%clk 0:00:21]}  Nb6 {[%clk 0:00:29]} 23. Nc1 {[%clk 0:00:20]}  Nxd3 {[%clk 0:00:24]} 24. Nxd3 {[%clk 0:00:20]}  Nc4 {[%clk 0:00:25]} 25. Bc5 {[%clk 0:00:14]}  O-O {[%clk 0:00:20]} 26. Rc1 {[%clk 0:00:14]}  Bxc5 {[%clk 0:00:10]} 27. Nxc5 {[%clk 0:00:15]}  Qb5 {[%clk 0:00:11]} 28. Nb3 {[%clk 0:00:12]}  a5 {[%clk 0:00:11]} 29. Nd2 {[%clk 0:00:09]}  Na3+ {[%clk 0:00:07]} 30. bxa3 {[%clk 0:00:06]}  bxa3+ {[%clk 0:00:08]} 31. Nb3 {[%clk 0:00:06]}  a4 {[%clk 0:00:09]} 32. Rc5 {[%clk 0:00:03]}  Qb8 {[%clk 0:00:05]} 33. Qc2 {[%clk 0:00:01]}  axb3 {[%clk 0:00:05]} 34. axb3 {[%clk 0:00:01]}  Rxc5 {[%clk 0:00:05]} 35. Qxc5 {[%clk 0:00:02]}  Qxb3+ {[%clk 0:00:05]} 36. Kc1 {[%clk 0:00:03]}  Qb2+ {[%clk 0:00:04]} 37. Kd1 {[%clk 0:00:04]}  a2 {[%clk 0:00:04]} 0-1


[Site "https://www.chess.com"]

[Event "Titled Tuesday Blitz February 28 Early 2023"]
[White "Milikow, Yoav"]
[Black "Ljukin, Sergei"]
[WhiteFideId "2822237"]
[BlackFideId "14102200"]
[WhiteElo "2410"]
[BlackElo "2312"]
[Result "1-0"]
[Round "02"]
[TimeControl "180+2"]
[Date "2023.02.28"]
[WhiteClock "0:00:36"]
[BlackClock "0:00:05"]

1. c4 {[%clk 0:03:00]}  c6 {[%clk 0:02:58]} 2. Nf3 {[%clk 0:02:59]}  d5 {[%clk 0:02:59]} 3. g3 {[%clk 0:02:58]}  Nf6 {[%clk 0:02:58]} 4. Bg2 {[%clk 0:02:58]}  Bf5 {[%clk 0:02:58]} 5. O-O {[%clk 0:02:48]}  e6 {[%clk 0:02:57]} 6. d3 {[%clk 0:02:46]}  Bc5 {[%clk 0:02:55]} 7. Nc3 {[%clk 0:02:46]}  O-O {[%clk 0:02:43]} 8. d4 {[%clk 0:02:35]}  Bd6 {[%clk 0:02:41]} 9. c5 {[%clk 0:02:33]}  Bc7 {[%clk 0:02:41]} 10. Nh4 {[%clk 0:02:32]}  Bg4 {[%clk 0:02:40]} 11. h3 {[%clk 0:02:31]}  Bh5 {[%clk 0:02:40]} 12. Rb1 {[%clk 0:02:21]}  e5 {[%clk 0:02:33]} 13. b4 {[%clk 0:02:17]}  exd4 {[%clk 0:02:22]} 14. Qxd4 {[%clk 0:02:18]}  Nbd7 {[%clk 0:02:22]} 15. Bf4 {[%clk 0:02:12]}  Re8 {[%clk 0:02:13]} 16. e3 {[%clk 0:02:08]}  Nf8 {[%clk 0:02:05]} 17. Bxc7 {[%clk 0:02:04]}  Qxc7 {[%clk 0:02:05]} 18. Qf4 {[%clk 0:01:58]}  Qxf4 {[%clk 0:01:39]} 19. gxf4 {[%clk 0:01:55]}  a6 {[%clk 0:01:33]} 20. Rb2 {[%clk 0:01:51]}  Rad8 {[%clk 0:01:31]} 21. Nf5 {[%clk 0:01:49]}  d4 {[%clk 0:01:23]} 22. Nxd4 {[%clk 0:01:47]}  Bg6 {[%clk 0:01:15]} 23. Rd2 {[%clk 0:01:42]}  Ne4 {[%clk 0:01:04]} 24. Bxe4 {[%clk 0:01:28]}  Bxe4 {[%clk 0:01:04]} 25. f3 {[%clk 0:01:28]}  Bg6 {[%clk 0:00:55]} 26. Kf2 {[%clk 0:01:27]}  Rd7 {[%clk 0:00:42]} 27. Rfd1 {[%clk 0:01:27]}  Red8 {[%clk 0:00:42]} 28. Ke2 {[%clk 0:01:17]}  Bh5 {[%clk 0:00:38]} 29. Ne4 {[%clk 0:01:10]}  Ne6 {[%clk 0:00:16]} 30. Nd6 {[%clk 0:01:08]}  Rb8 {[%clk 0:00:13]} 31. a4 {[%clk 0:01:02]}  Kf8 {[%clk 0:00:12]} 32. a5 {[%clk 0:01:01]}  g6 {[%clk 0:00:09]} 33. Kf2 {[%clk 0:01:01]}  Ke7 {[%clk 0:00:09]} 34. N4f5+ {[%clk 0:00:57]}  gxf5 {[%clk 0:00:07]} 35. Nxf5+ {[%clk 0:00:58]}  Kf6 {[%clk 0:00:08]} 36. Rxd7 {[%clk 0:00:58]}  Kxf5 {[%clk 0:00:08]} 37. Rg1 {[%clk 0:00:51]}  Kf6 {[%clk 0:00:08]} 38. Rd6 {[%clk 0:00:43]}  Ke7 {[%clk 0:00:07]} 39. f5 {[%clk 0:00:41]}  Nc7 {[%clk 0:00:05]} 40. e4 {[%clk 0:00:36]} 1-0


[Site "https://www.chess.com"]

[Event "Titled Tuesday Blitz February 28 Early 2023"]
[White "Estrada Nieto, Julian"]
[Black "Goltsev, Dmitry"]
[WhiteFideId "5101018"]
[BlackFideId "24176710"]
[WhiteElo "2176"]
[BlackElo "2302"]
[Result "0-1"]
[Round "02"]
[TimeControl "180+2"]
[Date "2023.02.28"]
[WhiteClock "0:00:09"]
[BlackClock "0:01:42"]

1. e4 {[%clk 0:03:00]}  e6 {[%clk 0:03:00]} 2. d4 {[%clk 0:03:00]}  d5 {[%clk 0:03:01]} 3. Nd2 {[%clk 0:03:01]}  c5 {[%clk 0:03:01]} 4. exd5 {[%clk 0:03:00]}  exd5 {[%clk 0:03:02]} 5. Ngf3 {[%clk 0:03:01]}  Nf6 {[%clk 0:03:03]} 6. Bb5+ {[%clk 0:03:01]}  Nc6 {[%clk 0:03:03]} 7. O-O {[%clk 0:03:01]}  Be7 {[%clk 0:03:03]} 8. dxc5 {[%clk 0:03:01]}  Bxc5 {[%clk 0:03:04]} 9. Nb3 {[%clk 0:03:00]}  Bb6 {[%clk 0:03:04]} 10. Re1+ {[%clk 0:02:59]}  Be6 {[%clk 0:03:05]} 11. Be3 {[%clk 0:03:00]}  O-O {[%clk 0:03:05]} 12. Bxb6 {[%clk 0:02:55]}  Qxb6 {[%clk 0:03:05]} 13. Bd3 {[%clk 0:02:35]}  Bg4 {[%clk 0:03:04]} 14. h3 {[%clk 0:02:33]}  Bh5 {[%clk 0:03:03]} 15. Be2 {[%clk 0:02:25]}  Ne4 {[%clk 0:03:03]} 16. Nfd4 {[%clk 0:02:24]}  Bg6 {[%clk 0:03:01]} 17. c3 {[%clk 0:02:14]}  Rfe8 {[%clk 0:03:00]} 18. Nxc6 {[%clk 0:02:11]}  bxc6 {[%clk 0:03:01]} 19. Qd4 {[%clk 0:02:11]}  Qc7 {[%clk 0:02:53]} 20. Bf3 {[%clk 0:02:01]}  Rad8 {[%clk 0:02:49]} 21. Nc5 {[%clk 0:01:52]}  Nd6 {[%clk 0:02:46]} 22. Qf4 {[%clk 0:01:48]}  h6 {[%clk 0:02:29]} 23. h4 {[%clk 0:01:47]}  Qb6 {[%clk 0:02:14]} 24. b4 {[%clk 0:01:46]}  Nb5 {[%clk 0:02:13]} 25. Rxe8+ {[%clk 0:01:25]}  Rxe8 {[%clk 0:02:14]} 26. Rc1 {[%clk 0:01:25]}  Qd8 {[%clk 0:02:11]} 27. a4 {[%clk 0:01:21]}  Nd6 {[%clk 0:02:11]} 28. Rd1 {[%clk 0:01:17]}  Qe7 {[%clk 0:02:09]} 29. Bg4 {[%clk 0:01:02]}  f5 {[%clk 0:02:04]} 30. Bf3 {[%clk 0:00:58]}  Bf7 {[%clk 0:02:04]} 31. h5 {[%clk 0:00:56]}  Nc4 {[%clk 0:02:03]} 32. Qxf5 {[%clk 0:00:48]}  Rf8 {[%clk 0:01:55]} 33. Qd7 {[%clk 0:00:45]}  Qf6 {[%clk 0:01:55]} 34. Rd3 {[%clk 0:00:36]}  Bxh5 {[%clk 0:01:48]} 35. Qe6+ {[%clk 0:00:33]}  Qxe6 {[%clk 0:01:48]} 36. Nxe6 {[%clk 0:00:34]}  Rf6 {[%clk 0:01:47]} 37. Bxh5 {[%clk 0:00:31]}  Rxe6 {[%clk 0:01:48]} 38. Bg4 {[%clk 0:00:31]}  Re1+ {[%clk 0:01:48]} 39. Kh2 {[%clk 0:00:32]}  Nb2 {[%clk 0:01:44]} 40. Rd4 {[%clk 0:00:27]}  Nxa4 {[%clk 0:01:44]} 41. b5 {[%clk 0:00:27]}  cxb5 {[%clk 0:01:40]} 42. Rxd5 {[%clk 0:00:27]}  Nxc3 {[%clk 0:01:40]} 43. Rc5 {[%clk 0:00:26]}  b4 {[%clk 0:01:41]} 44. Rc8+ {[%clk 0:00:24]}  Kf7 {[%clk 0:01:40]} 45. Rc7+ {[%clk 0:00:24]}  Re7 {[%clk 0:01:40]} 46. Bh5+ {[%clk 0:00:20]}  g6 {[%clk 0:01:37]} 47. Bxg6+ {[%clk 0:00:19]}  Kf6 {[%clk 0:01:38]} 48. Rc6+ {[%clk 0:00:19]}  Re6 {[%clk 0:01:39]} 49. Rxe6+ {[%clk 0:00:13]}  Kxe6 {[%clk 0:01:40]} 50. f4 {[%clk 0:00:12]}  a5 {[%clk 0:01:40]} 51. Bc2 {[%clk 0:00:10]}  a4 {[%clk 0:01:40]} 52. g4 {[%clk 0:00:09]}  a3 {[%clk 0:01:40]} 53. Bb3+ {[%clk 0:00:08]}  Kf6 {[%clk 0:01:41]} 54. Kg3 {[%clk 0:00:08]}  a2 {[%clk 0:01:41]} 55. Kh4 {[%clk 0:00:07]}  a1=Q {[%clk 0:01:42]} 56. g5+ {[%clk 0:00:08]}  hxg5+ {[%clk 0:01:42]} 57. fxg5+ {[%clk 0:00:09]}  Kg7 {[%clk 0:01:42]} 0-1


[Site "https://www.chess.com"]

[Event "Titled Tuesday Blitz February 28 Early 2023"]
[White "Msellek, Ilyass"]
[Black "Koridze, Lile"]
[WhiteFideId "675938"]
[BlackFideId "13612514"]
[WhiteElo "2303"]
[BlackElo "2047"]
[Result "1-0"]
[Round "02"]
[TimeControl "180+2"]
[Date "2023.02.28"]
[WhiteClock "0:01:49"]
[BlackClock "0:01:20"]

1. d4 {[%clk 0:02:51]}  Nf6 {[%clk 0:01:51]} 2. Nf3 {[%clk 0:02:48]}  d5 {[%clk 0:01:51]} 3. Bg5 {[%clk 0:02:47]}  e6 {[%clk 0:01:51]} 4. e3 {[%clk 0:02:47]}  Be7 {[%clk 0:01:50]} 5. Nbd2 {[%clk 0:02:46]}  O-O {[%clk 0:01:51]} 6. Bd3 {[%clk 0:02:46]}  c5 {[%clk 0:01:51]} 7. c3 {[%clk 0:02:47]}  b6 {[%clk 0:01:51]} 8. O-O {[%clk 0:02:46]}  Bb7 {[%clk 0:01:51]} 9. Ne5 {[%clk 0:02:46]}  Nbd7 {[%clk 0:01:50]} 10. f4 {[%clk 0:02:47]}  h6 {[%clk 0:01:50]} 11. Bh4 {[%clk 0:02:47]}  Ne4 {[%clk 0:01:48]} 12. Bxe7 {[%clk 0:02:43]}  Qxe7 {[%clk 0:01:47]} 13. Nxe4 {[%clk 0:02:44]}  dxe4 {[%clk 0:01:47]} 14. Bc4 {[%clk 0:02:45]}  Nf6 {[%clk 0:01:47]} 15. f5 {[%clk 0:02:42]}  exf5 {[%clk 0:01:46]} 16. Rxf5 {[%clk 0:02:42]}  Rad8 {[%clk 0:01:45]} 17. Qe2 {[%clk 0:02:38]}  Bd5 {[%clk 0:01:44]} 18. Bb5 {[%clk 0:02:28]}  Qe6 {[%clk 0:01:28]} 19. Raf1 {[%clk 0:02:26]}  Bxa2 {[%clk 0:01:26]} 20. Rxf6 {[%clk 0:02:05]}  gxf6 {[%clk 0:01:26]} 21. Ng4 {[%clk 0:02:05]}  Kg7 {[%clk 0:01:20]} 22. Rxf6 {[%clk 0:01:48]}  Qxf6 {[%clk 0:01:19]} 23. Nxf6 {[%clk 0:01:49]}  Kg6 {[%clk 0:01:20]} 24. Nxe4 {[%clk 0:01:49]} 1-0


[Site "https://www.chess.com"]

[Event "Titled Tuesday Blitz February 28 Early 2023"]
[White "EREBUNI91"]
[Black "Kostiukov, Alexandr"]
[BlackFideId "14108100"]
[WhiteElo "2718"]
[BlackElo "2202"]
[Result "1-0"]
[Round "02"]
[TimeControl "180+2"]
[Date "2023.02.28"]
[WhiteClock "0:00:17"]
[BlackClock "0:00:10"]

1. e4 {[%clk 0:03:00]}  c5 {[%clk 0:02:59]} 2. Nc3 {[%clk 0:02:58]}  g6 {[%clk 0:02:57]} 3. d4 {[%clk 0:02:59]}  cxd4 {[%clk 0:02:57]} 4. Qxd4 {[%clk 0:03:00]}  Nf6 {[%clk 0:02:57]} 5. Be3 {[%clk 0:02:57]}  Nc6 {[%clk 0:02:56]} 6. Qd2 {[%clk 0:02:57]}  Bg7 {[%clk 0:02:45]} 7. O-O-O {[%clk 0:02:55]}  O-O {[%clk 0:02:36]} 8. f3 {[%clk 0:02:52]}  Qa5 {[%clk 0:02:23]} 9. Kb1 {[%clk 0:02:49]}  d6 {[%clk 0:02:21]} 10. Bc4 {[%clk 0:02:46]}  Be6 {[%clk 0:02:10]} 11. Bxe6 {[%clk 0:02:40]}  fxe6 {[%clk 0:02:10]} 12. Nge2 {[%clk 0:02:41]}  Ne5 {[%clk 0:02:04]} 13. b3 {[%clk 0:02:16]}  b5 {[%clk 0:01:47]} 14. Nd4 {[%clk 0:02:09]}  Rfb8 {[%clk 0:01:26]} 15. Nxe6 {[%clk 0:02:03]}  Nc4 {[%clk 0:01:22]} 16. Qd4 {[%clk 0:01:27]}  Nxe3 {[%clk 0:01:12]} 17. Qxe3 {[%clk 0:01:28]}  Ng4 {[%clk 0:01:01]} 18. fxg4 {[%clk 0:01:25]}  Bxc3 {[%clk 0:01:01]} 19. Rd3 {[%clk 0:01:23]}  Be5 {[%clk 0:01:00]} 20. h4 {[%clk 0:00:59]}  Rb6 {[%clk 0:00:57]} 21. c3 {[%clk 0:00:35]}  Ra6 {[%clk 0:00:41]} 22. Qd2 {[%clk 0:00:32]}  Rc8 {[%clk 0:00:38]} 23. Rf1 {[%clk 0:00:27]}  Rac6 {[%clk 0:00:19]} 24. Rdf3 {[%clk 0:00:23]}  Bg7 {[%clk 0:00:09]} 25. Nxg7 {[%clk 0:00:21]}  Kxg7 {[%clk 0:00:09]} 26. Rf7+ {[%clk 0:00:20]}  Kg8 {[%clk 0:00:10]} 27. Qh6 {[%clk 0:00:17]} 1-0


[Site "https://www.chess.com"]

[Event "Titled Tuesday Blitz February 28 Early 2023"]
[White "Melikhov, Evgeny V."]
[Black "Matinian, Nikita"]
[WhiteFideId "4122046"]
[BlackFideId "24129100"]
[WhiteElo "2158"]
[BlackElo "2422"]
[Result "1/2-1/2"]
[Round "02"]
[TimeControl "180+2"]
[Date "2023.02.28"]
[WhiteClock "0:00:20"]
[BlackClock "0:00:21"]

1. d4 {[%clk 0:03:00]}  Nf6 {[%clk 0:02:59]} 2. c4 {[%clk 0:03:01]}  e6 {[%clk 0:03:00]} 3. Nc3 {[%clk 0:03:01]}  Bb4 {[%clk 0:02:59]} 4. Qc2 {[%clk 0:03:01]}  d6 {[%clk 0:02:58]} 5. a3 {[%clk 0:02:57]}  Bxc3+ {[%clk 0:02:57]} 6. Qxc3 {[%clk 0:02:57]}  O-O {[%clk 0:02:57]} 7. Nf3 {[%clk 0:02:57]}  Nc6 {[%clk 0:02:56]} 8. e3 {[%clk 0:02:56]}  Qe7 {[%clk 0:02:52]} 9. b3 {[%clk 0:02:55]}  e5 {[%clk 0:02:49]} 10. dxe5 {[%clk 0:02:55]}  dxe5 {[%clk 0:02:49]} 11. Bb2 {[%clk 0:02:54]}  Ne4 {[%clk 0:02:49]} 12. Qc2 {[%clk 0:02:53]}  f5 {[%clk 0:02:44]} 13. Be2 {[%clk 0:02:49]}  b6 {[%clk 0:02:37]} 14. O-O {[%clk 0:02:48]}  Bb7 {[%clk 0:02:38]} 15. Rad1 {[%clk 0:02:34]}  Rae8 {[%clk 0:02:38]} 16. Rd5 {[%clk 0:02:14]}  Nf6 {[%clk 0:02:32]} 17. Rdd1 {[%clk 0:02:09]}  f4 {[%clk 0:02:21]} 18. exf4 {[%clk 0:02:04]}  exf4 {[%clk 0:02:12]} 19. Bd3 {[%clk 0:02:02]}  Qc5 {[%clk 0:02:11]} 20. Bxf6 {[%clk 0:01:40]}  Rxf6 {[%clk 0:02:10]} 21. Bxh7+ {[%clk 0:01:40]}  Kf8 {[%clk 0:02:01]} 22. b4 {[%clk 0:01:31]}  Qh5 {[%clk 0:01:56]} 23. Be4 {[%clk 0:01:26]}  Rh6 {[%clk 0:01:46]} 24. h3 {[%clk 0:01:24]}  Bc8 {[%clk 0:01:30]} 25. Rd5 {[%clk 0:01:18]}  Ne5 {[%clk 0:01:18]} 26. Rxe5 {[%clk 0:01:10]}  Rxe5 {[%clk 0:01:19]} 27. Nxe5 {[%clk 0:01:09]}  Qxe5 {[%clk 0:01:19]} 28. Rd1 {[%clk 0:00:57]}  Rd6 {[%clk 0:01:15]} 29. Rd5 {[%clk 0:00:53]}  Qa1+ {[%clk 0:01:07]} 30. Kh2 {[%clk 0:00:52]}  Rxd5 {[%clk 0:01:02]} 31. Bxd5 {[%clk 0:00:52]}  Qe5 {[%clk 0:01:01]} 32. Qg6 {[%clk 0:00:43]}  Qf5 {[%clk 0:00:42]} 33. Qxf5+ {[%clk 0:00:41]}  Bxf5 {[%clk 0:00:43]} 34. g3 {[%clk 0:00:41]}  fxg3+ {[%clk 0:00:43]} 35. fxg3 {[%clk 0:00:39]}  Ke7 {[%clk 0:00:44]} 36. c5 {[%clk 0:00:36]}  Kf6 {[%clk 0:00:42]} 37. g4 {[%clk 0:00:36]}  Bd3 {[%clk 0:00:40]} 38. cxb6 {[%clk 0:00:35]}  axb6 {[%clk 0:00:38]} 39. a4 {[%clk 0:00:30]}  Ke5 {[%clk 0:00:38]} 40. Bb7 {[%clk 0:00:30]}  c5 {[%clk 0:00:29]} 41. bxc5 {[%clk 0:00:30]}  bxc5 {[%clk 0:00:29]} 42. Kg3 {[%clk 0:00:23]}  c4 {[%clk 0:00:29]} 43. Ba6 {[%clk 0:00:19]}  Kd4 {[%clk 0:00:27]} 44. Bxc4 {[%clk 0:00:18]}  Kxc4 {[%clk 0:00:19]} 45. Kf4 {[%clk 0:00:18]}  Kb4 {[%clk 0:00:19]} 46. Kg5 {[%clk 0:00:18]}  Kxa4 {[%clk 0:00:19]} 47. h4 {[%clk 0:00:18]}  Kb5 {[%clk 0:00:18]} 48. h5 {[%clk 0:00:19]}  Kc6 {[%clk 0:00:18]} 49. h6 {[%clk 0:00:19]}  gxh6+ {[%clk 0:00:19]} 50. Kxh6 {[%clk 0:00:19]}  Kd6 {[%clk 0:00:20]} 51. g5 {[%clk 0:00:20]}  Ke7 {[%clk 0:00:21]} 52. g6 {[%clk 0:00:20]}  Bxg6 {[%clk 0:00:21]} 1/2-1/2


[Site "https://www.chess.com"]

[Event "Titled Tuesday Blitz February 28 Early 2023"]
[White "Lopez Del Alamo, Antonio"]
[Black "Barbosa, Evandro Amorim"]
[WhiteFideId "2227339"]
[BlackFideId "2115824"]
[WhiteElo "2175"]
[BlackElo "2439"]
[Result "0-1"]
[Round "02"]
[TimeControl "180+2"]
[Date "2023.02.28"]
[WhiteClock "0:01:05"]
[BlackClock "0:02:11"]

1. e4 {[%clk 0:03:00]}  c5 {[%clk 0:02:59]} 2. Nf3 {[%clk 0:03:00]}  e6 {[%clk 0:03:00]} 3. d3 {[%clk 0:03:00]}  Nc6 {[%clk 0:03:00]} 4. g3 {[%clk 0:03:00]}  g6 {[%clk 0:03:00]} 5. d4 {[%clk 0:02:58]}  cxd4 {[%clk 0:02:53]} 6. Nxd4 {[%clk 0:02:59]}  Bg7 {[%clk 0:02:53]} 7. Be3 {[%clk 0:02:53]}  Nf6 {[%clk 0:02:52]} 8. Nc3 {[%clk 0:02:53]}  d5 {[%clk 0:02:50]} 9. Nxc6 {[%clk 0:02:48]}  bxc6 {[%clk 0:02:49]} 10. e5 {[%clk 0:02:48]}  Nd7 {[%clk 0:02:49]} 11. f4 {[%clk 0:02:47]}  O-O {[%clk 0:02:48]} 12. Be2 {[%clk 0:02:25]}  Rb8 {[%clk 0:02:48]} 13. Rb1 {[%clk 0:02:19]}  c5 {[%clk 0:02:48]} 14. Bf2 {[%clk 0:02:13]}  d4 {[%clk 0:02:46]} 15. Ne4 {[%clk 0:02:10]}  Bb7 {[%clk 0:02:46]} 16. Bf3 {[%clk 0:02:07]}  Ba6 {[%clk 0:02:39]} 17. Qd2 {[%clk 0:02:01]}  f6 {[%clk 0:02:34]} 18. exf6 {[%clk 0:01:56]}  Nxf6 {[%clk 0:02:34]} 19. Nxc5 {[%clk 0:01:52]}  Bc4 {[%clk 0:02:32]} 20. Nd3 {[%clk 0:01:19]}  Bxa2 {[%clk 0:02:24]} 21. Ra1 {[%clk 0:01:18]}  Bd5 {[%clk 0:02:24]} 22. Bxd5 {[%clk 0:01:14]}  Qxd5 {[%clk 0:02:24]} 23. O-O {[%clk 0:01:14]}  Ne4 {[%clk 0:02:24]} 24. Qe2 {[%clk 0:01:11]}  e5 {[%clk 0:02:17]} 25. fxe5 {[%clk 0:01:05]}  Ng5 {[%clk 0:02:11]} 0-1


[Site "https://www.chess.com"]